[Event "*** Titled Tuesday Blitz"]
[Site "Chess.com"]
[Date "2020.04.14"]
[Round "8"]
[White "Ziyamammadov"]
[Black "ClockworkKubrick"]
[Result "0-1"]
[WhiteElo "1792"]
[BlackElo "2205"]
[TimeControl "180+1"]
[EndTime "11:29:52 PDT"]
[Termination "ClockworkKubrick won on time"]

1. e4 {[%clk 0:02:42.1]} 1... d6 {[%clk 0:02:59.7]} 2. Nf3 {[%clk 0:02:42]} 2...
Nf6 {[%clk 0:03:00.3]} 3. c3 {[%clk 0:02:41.4]} 3... g6 {[%clk 0:03:00.8]} 4.
Bd3 {[%clk 0:02:40.3]} 4... Bg7 {[%clk 0:03:01.3]} 5. O-O {[%clk 0:02:40.4]}
5... e5 {[%clk 0:03:01.6]} 6. Bc2 {[%clk 0:02:40.4]} 6... O-O {[%clk 0:03:01.6]}
7. d4 {[%clk 0:02:40.4]} 7... c6 {[%clk 0:03:01.9]} 8. dxe5 {[%clk 0:02:39.1]}
8... dxe5 {[%clk 0:03:01.7]} 9. Nxe5 {[%clk 0:02:37.4]} 9... Nxe4 {[%clk
0:03:00.5]} 10. Qxd8 {[%clk 0:02:30.4]} 10... Rxd8 {[%clk 0:02:58.2]} 11. Nxf7
{[%clk 0:02:30]} 11... Kxf7 {[%clk 0:02:52]} 12. Bxe4 {[%clk 0:02:30]} 12... Nd7
{[%clk 0:02:43.9]} 13. Bg5 {[%clk 0:02:29]} 13... Bf6 {[%clk 0:02:42.3]} 14. Bf4
{[%clk 0:02:25.3]} 14... Nc5 {[%clk 0:02:40.1]} 15. Bf3 {[%clk 0:02:22.2]} 15...
Na4 {[%clk 0:02:39.7]} 16. Bc1 {[%clk 0:02:16]} 16... Bf5 {[%clk 0:02:31]} 17.
Nd2 {[%clk 0:01:56.2]} 17... Nxc3 {[%clk 0:02:27.7]} 18. Nc4 {[%clk 0:01:43.2]}
18... Na4 {[%clk 0:02:20.2]} 19. Bf4 {[%clk 0:01:37.1]} 19... g5 {[%clk
0:02:09.7]} 20. Bc7 {[%clk 0:01:30.2]} 20... Rd7 {[%clk 0:02:05.7]} 21. Nd6+
{[%clk 0:01:24.4]} 21... Kg6 {[%clk 0:02:00.6]} 22. Nxf5 {[%clk 0:01:20.4]}
22... Kxf5 {[%clk 0:01:54]} 23. Bg3 {[%clk 0:01:15.9]} 23... Nxb2 {[%clk
0:01:50.4]} 24. Rae1 {[%clk 0:01:14]} 24... Kg6 {[%clk 0:01:40.6]} 25. Be4+
{[%clk 0:01:12.6]} 25... Kg7 {[%clk 0:01:40.3]} 26. Bf5 {[%clk 0:01:12.6]} 26...
Rd2 {[%clk 0:01:30.5]} 27. Be5 {[%clk 0:01:07.5]} 27... Rf8 {[%clk 0:01:22.9]}
28. Bxf6+ {[%clk 0:01:02.4]} 28... Rxf6 {[%clk 0:01:21]} 29. Bb1 {[%clk
0:00:52.3]} 29... Nd3 {[%clk 0:01:11.7]} 30. Re7+ {[%clk 0:00:50.7]} 30... Rf7
{[%clk 0:01:11.1]} 31. Rxf7+ {[%clk 0:00:30.9]} 31... Kxf7 {[%clk 0:01:10.4]}
32. a4 {[%clk 0:00:30.2]} 32... b5 {[%clk 0:01:06]} 33. axb5 {[%clk 0:00:28.8]}
33... cxb5 {[%clk 0:01:06.2]} 34. g3 {[%clk 0:00:27.5]} 34... a5 {[%clk
0:01:05.5]} 35. f4 {[%clk 0:00:26.1]} 35... g4 {[%clk 0:01:03.3]} 36. Bxd3
{[%clk 0:00:15.6]} 36... Rxd3 {[%clk 0:01:03.1]} 37. Rc1 {[%clk 0:00:14.8]}
37... a4 {[%clk 0:00:58.3]} 38. Rc7+ {[%clk 0:00:14.9]} 38... Ke6 {[%clk
0:00:57.7]} 39. Rxh7 {[%clk 0:00:13.2]} 39... a3 {[%clk 0:00:58.1]} 40. Ra7
{[%clk 0:00:12.9]} 40... b4 {[%clk 0:00:57.3]} 41. Ra6+ {[%clk 0:00:13.1]} 41...
Kf5 {[%clk 0:00:56.3]} 42. Kf2 {[%clk 0:00:10.3]} 42... Rd2+ {[%clk 0:00:53.2]}
43. Ke3 {[%clk 0:00:09.2]} 43... Rxh2 {[%clk 0:00:52.9]} 44. Ra5+ {[%clk
0:00:07.7]} 44... Ke6 {[%clk 0:00:53.2]} 45. Ra4 {[%clk 0:00:05.6]} 45... a2
{[%clk 0:00:52.5]} 46. Ke4 {[%clk 0:00:03.8]} 46... b3 {[%clk 0:00:50.6]} 47.
f5+ {[%clk 0:00:03.2]} 47... Kd7 {[%clk 0:00:50.5]} 48. f6 {[%clk 0:00:02.5]}
48... Rf2 {[%clk 0:00:49.5]} 49. Ke5 {[%clk 0:00:02.8]} 49... Rf1 {[%clk
0:00:45.2]} 0-1

[Event "*** Titled Tuesday Blitz"]
[Site "Chess.com"]
[Date "2020.04.14"]
[Round "8"]
[White "flavicol64"]
[Black "LogoCzar"]
[Result "1/2-1/2"]
[WhiteElo "2281"]
[BlackElo "2426"]
[TimeControl "180+1"]
[EndTime "11:29:54 PDT"]
[Termination "Game drawn by repetition"]

1. d4 {[%clk 0:02:18.8]} 1... d5 {[%clk 0:02:58.2]} 2. c4 {[%clk 0:02:19.3]}
2... c6 {[%clk 0:02:57.6]} 3. Nc3 {[%clk 0:02:19.8]} 3... Nf6 {[%clk 0:02:57.9]}
4. Nf3 {[%clk 0:02:19.8]} 4... e6 {[%clk 0:02:58.4]} 5. e3 {[%clk 0:02:06.4]}
5... Nbd7 {[%clk 0:02:54.3]} 6. b3 {[%clk 0:02:05.8]} 6... Bb4 {[%clk
0:02:51.9]} 7. Bd2 {[%clk 0:02:06]} 7... Bd6 {[%clk 0:02:51]} 8. Qc2 {[%clk
0:02:05.1]} 8... O-O {[%clk 0:02:50.7]} 9. Bd3 {[%clk 0:02:04.9]} 9... e5 {[%clk
0:02:50.3]} 10. cxd5 {[%clk 0:02:05]} 10... cxd5 {[%clk 0:02:49.8]} 11. Nb5
{[%clk 0:02:03.5]} 11... Bb8 {[%clk 0:02:48.9]} 12. dxe5 {[%clk 0:02:03.8]}
12... Nxe5 {[%clk 0:02:49]} 13. Be2 {[%clk 0:02:04.4]} 13... a6 {[%clk
0:02:42.1]} 14. Nbd4 {[%clk 0:01:55.9]} 14... Bd7 {[%clk 0:02:35.7]} 15. O-O
{[%clk 0:01:52.7]} 15... Bd6 {[%clk 0:02:34.2]} 16. Qb2 {[%clk 0:01:50.3]} 16...
Qe7 {[%clk 0:02:32.7]} 17. Bc3 {[%clk 0:01:33.8]} 17... Ne4 {[%clk 0:02:30.9]}
18. Rac1 {[%clk 0:01:31.7]} 18... Ba3 {[%clk 0:02:23.1]} 19. Qa1 {[%clk
0:01:31.4]} 19... Bxc1 {[%clk 0:02:22.1]} 20. Rxc1 {[%clk 0:01:32.3]} 20...
Nxf3+ {[%clk 0:02:21.1]} 21. Bxf3 {[%clk 0:01:31.3]} 21... Nxc3 {[%clk
0:02:21.1]} 22. Rxc3 {[%clk 0:01:31.4]} 22... Be6 {[%clk 0:02:19.5]} 23. Qc1
{[%clk 0:01:29.8]} 23... Rac8 {[%clk 0:02:14.2]} 24. Nxe6 {[%clk 0:01:25.7]}
24... Rxc3 {[%clk 0:02:05.2]} 25. Qxc3 {[%clk 0:01:23.5]} 25... fxe6 {[%clk
0:02:04.7]} 26. Qe5 {[%clk 0:01:23.2]} 26... Rc8 {[%clk 0:02:00]} 27. g4 {[%clk
0:01:21.8]} 27... Qf6 {[%clk 0:01:57.4]} 28. Qg3 {[%clk 0:01:19.8]} 28... Qa1+
{[%clk 0:01:52.9]} 29. Kg2 {[%clk 0:01:19.6]} 29... Qxa2 {[%clk 0:01:52.6]} 30.
Qe5 {[%clk 0:01:19.8]} 30... Kf7 {[%clk 0:01:46.7]} 31. Bxd5 {[%clk 0:01:20.2]}
31... exd5 {[%clk 0:01:43.9]} 32. Qf5+ {[%clk 0:01:19.4]} 32... Ke7 {[%clk
0:01:41.6]} 33. Qxc8 {[%clk 0:01:19.4]} 33... Qxb3 {[%clk 0:01:39.4]} 34. Qc5+
{[%clk 0:01:11.1]} 34... Kd7 {[%clk 0:01:38.1]} 35. Qd4 {[%clk 0:01:05.7]} 35...
Qc4 {[%clk 0:01:26.2]} 36. Qxg7+ {[%clk 0:01:01.8]} 36... Kc6 {[%clk 0:01:26.3]}
37. Qf6+ {[%clk 0:00:58.6]} 37... Kb5 {[%clk 0:01:23]} 38. Qb2+ {[%clk
0:00:57.9]} 38... Kc5 {[%clk 0:01:20]} 39. Qa3+ {[%clk 0:00:56.7]} 39... Qb4
{[%clk 0:01:18.1]} 40. Qc1+ {[%clk 0:00:57]} 40... Kd6 {[%clk 0:01:16.3]} 41. f4
{[%clk 0:00:51.7]} 41... a5 {[%clk 0:01:10.2]} 42. Qa1 {[%clk 0:00:50.4]} 42...
Qd2+ {[%clk 0:01:02.1]} 43. Kf3 {[%clk 0:00:49.1]} 43... Qxh2 {[%clk 0:01:00.2]}
44. Qa3+ {[%clk 0:00:37.2]} 44... Kc6 {[%clk 0:00:57]} 45. Qxa5 {[%clk
0:00:27.8]} 45... Qh3+ {[%clk 0:00:50.6]} 46. Kf2 {[%clk 0:00:28.7]} 46... Qxg4
{[%clk 0:00:48.7]} 47. Qa4+ {[%clk 0:00:26.1]} 47... Kd6 {[%clk 0:00:43.4]} 48.
Qb4+ {[%clk 0:00:25.7]} 48... Kc7 {[%clk 0:00:39.1]} 49. Qc5+ {[%clk 0:00:25.5]}
49... Kb8 {[%clk 0:00:37.3]} 50. Qxd5 {[%clk 0:00:25.9]} 50... Qh4+ {[%clk
0:00:36.4]} 51. Ke2 {[%clk 0:00:24.8]} 51... Qg4+ {[%clk 0:00:33.1]} 52. Kf2
{[%clk 0:00:24.6]} 52... Qh4+ {[%clk 0:00:30.3]} 53. Ke2 {[%clk 0:00:23.9]}
53... Qg4+ {[%clk 0:00:30.6]} 54. Kf2 {[%clk 0:00:23.8]} 1/2-1/2

[Event "*** Titled Tuesday Blitz"]
[Site "Chess.com"]
[Date "2020.04.14"]
[Round "8"]
[White "picturesquecheck"]
[Black "GrafLermontov"]
[Result "0-1"]
[WhiteElo "2206"]
[BlackElo "2383"]
[TimeControl "180+1"]
[EndTime "11:29:54 PDT"]
[Termination "GrafLermontov won by resignation"]

1. e4 {[%clk 0:02:36.8]} 1... c5 {[%clk 0:02:58]} 2. Nf3 {[%clk 0:02:36.1]} 2...
e6 {[%clk 0:02:52.8]} 3. d4 {[%clk 0:02:36.3]} 3... cxd4 {[%clk 0:02:53.6]} 4.
Nxd4 {[%clk 0:02:37.2]} 4... Nc6 {[%clk 0:02:53.5]} 5. Be2 {[%clk 0:02:36.9]}
5... Qc7 {[%clk 0:02:49.6]} 6. O-O {[%clk 0:02:35.9]} 6... a6 {[%clk 0:02:50.1]}
7. Nc3 {[%clk 0:02:35.8]} 7... Nf6 {[%clk 0:02:50.6]} 8. Be3 {[%clk 0:02:36.1]}
8... Be7 {[%clk 0:02:51.1]} 9. f4 {[%clk 0:02:35]} 9... d6 {[%clk 0:02:48.8]}
10. Qe1 {[%clk 0:02:35.2]} 10... b5 {[%clk 0:02:44.1]} 11. a3 {[%clk 0:02:34.2]}
11... Bb7 {[%clk 0:02:43.8]} 12. Qg3 {[%clk 0:02:31.9]} 12... g6 {[%clk
0:02:44.2]} 13. Bf3 {[%clk 0:02:28.8]} 13... Rc8 {[%clk 0:02:43.8]} 14. Rad1
{[%clk 0:02:20.2]} 14... Na5 {[%clk 0:02:32.4]} 15. f5 {[%clk 0:02:11.7]} 15...
e5 {[%clk 0:02:29.8]} 16. Nb3 {[%clk 0:02:10.2]} 16... Nc4 {[%clk 0:02:28.9]}
17. Bg5 {[%clk 0:02:00.7]} 17... Nxb2 {[%clk 0:02:25.2]} 18. fxg6 {[%clk
0:01:59.9]} 18... hxg6 {[%clk 0:02:03.8]} 19. Bxf6 {[%clk 0:01:37.8]} 19... Bxf6
{[%clk 0:01:59.1]} 20. Bg4 {[%clk 0:01:25]} 20... Qxc3 {[%clk 0:01:50]} 21. Bxc8
{[%clk 0:01:12]} 21... Qxg3 {[%clk 0:01:06.4]} 22. hxg3 {[%clk 0:01:07.9]} 22...
Bxc8 {[%clk 0:01:04]} 23. Rb1 {[%clk 0:01:07.4]} 23... Bg5 {[%clk 0:01:00]} 24.
Rxb2 {[%clk 0:01:01.5]} 24... Be3+ {[%clk 0:00:58.8]} 25. Rf2 {[%clk 0:01:00.5]}
25... Bxf2+ {[%clk 0:00:58.9]} 26. Kxf2 {[%clk 0:01:00.4]} 26... Be6 {[%clk
0:00:58.4]} 27. Nd2 {[%clk 0:01:00]} 27... Kd7 {[%clk 0:00:56.8]} 28. Rb4 {[%clk
0:00:53.9]} 28... Rc8 {[%clk 0:00:56.4]} 29. Rb2 {[%clk 0:00:51.4]} 29... Rc3
{[%clk 0:00:47.6]} 30. Nb1 {[%clk 0:00:46.4]} 30... Rc4 {[%clk 0:00:46.8]} 31.
Ke3 {[%clk 0:00:43.1]} 31... f5 {[%clk 0:00:44.3]} 32. exf5 {[%clk 0:00:41.5]}
32... gxf5 {[%clk 0:00:45.2]} 33. Nd2 {[%clk 0:00:36.5]} 33... Ra4 {[%clk
0:00:45.1]} 34. Nb1 {[%clk 0:00:32.4]} 34... Bd5 {[%clk 0:00:45]} 35. Kf2 {[%clk
0:00:30.4]} 35... e4 {[%clk 0:00:40.1]} 36. Rb4 {[%clk 0:00:30.2]} 36... Rxb4
{[%clk 0:00:36.6]} 37. axb4 {[%clk 0:00:29.8]} 37... Ke6 {[%clk 0:00:37.2]} 38.
Ke3 {[%clk 0:00:27.1]} 38... Ke5 {[%clk 0:00:37.3]} 39. Nc3 {[%clk 0:00:22.3]}
39... Bc4 {[%clk 0:00:37.3]} 40. g4 {[%clk 0:00:19.3]} 40... d5 {[%clk
0:00:34.9]} 41. Nd1 {[%clk 0:00:17.3]} 41... d4+ {[%clk 0:00:33.4]} 42. Kf2
{[%clk 0:00:16.6]} 42... fxg4 {[%clk 0:00:33.6]} 43. Nb2 {[%clk 0:00:16.2]}
43... e3+ {[%clk 0:00:32.8]} 44. Ke1 {[%clk 0:00:16.4]} 44... Ke4 {[%clk
0:00:31.7]} 45. Kd1 {[%clk 0:00:16.7]} 45... Kf4 {[%clk 0:00:31.3]} 46. Ke1
{[%clk 0:00:16.8]} 46... Kg3 {[%clk 0:00:31.4]} 0-1

[Event "*** Titled Tuesday Blitz"]
[Site "Chess.com"]
[Date "2020.04.14"]
[Round "8"]
[White "Sebastian"]
[Black "stanyga"]
[Result "1-0"]
[WhiteElo "2998"]
[BlackElo "2679"]
[TimeControl "180+1"]
[EndTime "11:29:58 PDT"]
[Termination "Sebastian won on time"]

1. e4 {[%clk 0:03:00.9]} 1... c5 {[%clk 0:02:59.9]} 2. Nf3 {[%clk 0:03:00.7]}
2... Nc6 {[%clk 0:02:59.9]} 3. d4 {[%clk 0:03:00.3]} 3... cxd4 {[%clk
0:02:59.3]} 4. Nxd4 {[%clk 0:03:01.2]} 4... e6 {[%clk 0:02:59.3]} 5. Nc3 {[%clk
0:03:01.5]} 5... Qc7 {[%clk 0:02:59.3]} 6. Be3 {[%clk 0:03:01.7]} 6... a6 {[%clk
0:02:58.8]} 7. Qd2 {[%clk 0:03:01.5]} 7... Nf6 {[%clk 0:02:58.3]} 8. O-O-O
{[%clk 0:03:01]} 8... Be7 {[%clk 0:02:45.9]} 9. f3 {[%clk 0:03:00.8]} 9... O-O
{[%clk 0:02:44.9]} 10. g4 {[%clk 0:02:58]} 10... Rd8 {[%clk 0:02:32.7]} 11. g5
{[%clk 0:02:52.5]} 11... Nh5 {[%clk 0:02:31.8]} 12. Kb1 {[%clk 0:02:29.7]} 12...
b5 {[%clk 0:02:30.3]} 13. Bd3 {[%clk 0:02:29.4]} 13... Nxd4 {[%clk 0:02:05.4]}
14. Bxd4 {[%clk 0:02:28.6]} 14... Nf4 {[%clk 0:02:05.8]} 15. Rhg1 {[%clk
0:02:07.2]} 15... b4 {[%clk 0:01:34.2]} 16. Na4 {[%clk 0:01:34.5]} 16... Rb8
{[%clk 0:01:29.4]} 17. Bf6 {[%clk 0:01:22.6]} 17... Bxf6 {[%clk 0:01:15.6]} 18.
gxf6 {[%clk 0:01:22.2]} 18... g6 {[%clk 0:01:15.9]} 19. Qf2 {[%clk 0:00:27.1]}
19... Qe5 {[%clk 0:01:12.3]} 20. Qh4 {[%clk 0:00:26.9]} 20... Kh8 {[%clk
0:01:11.2]} 21. Rg4 {[%clk 0:00:24.6]} 21... Rg8 {[%clk 0:00:52.5]} 22. Rdg1
{[%clk 0:00:17.6]} 22... Bb7 {[%clk 0:00:30.2]} 23. Nb6 {[%clk 0:00:17.4]} 23...
Bc6 {[%clk 0:00:29.2]} 24. Nc4 {[%clk 0:00:17]} 24... Qd4 {[%clk 0:00:29.2]} 25.
b3 {[%clk 0:00:11.8]} 25... g5 {[%clk 0:00:28.9]} 26. Rxg5 {[%clk 0:00:09.7]}
26... Qxg1+ {[%clk 0:00:28.7]} 27. Rxg1 {[%clk 0:00:09.7]} 27... Rxg1+ {[%clk
0:00:29.4]} 28. Kb2 {[%clk 0:00:10.6]} 28... Nxd3+ {[%clk 0:00:29.4]} 29. cxd3
{[%clk 0:00:11.1]} 29... Rg2+ {[%clk 0:00:28.4]} 30. Kc1 {[%clk 0:00:10.8]}
30... Rbg8 {[%clk 0:00:28]} 31. Ne5 {[%clk 0:00:11]} 31... Rg1+ {[%clk 0:00:25]}
32. Kd2 {[%clk 0:00:11.1]} 32... Rf8 {[%clk 0:00:21.2]} 33. Qh6 {[%clk
0:00:11.1]} 33... Rgg8 {[%clk 0:00:21]} 34. Ke3 {[%clk 0:00:10.2]} 34... Bb5
{[%clk 0:00:20.8]} 35. Qh4 {[%clk 0:00:06.5]} 35... d6 {[%clk 0:00:20.4]} 36.
Ng4 {[%clk 0:00:06.1]} 36... Rg6 {[%clk 0:00:20.4]} 37. Nh6 {[%clk 0:00:06.4]}
37... e5 {[%clk 0:00:17]} 38. d4 {[%clk 0:00:05.6]} 1-0

[Event "*** Titled Tuesday Blitz"]
[Site "Chess.com"]
[Date "2020.04.14"]
[Round "8"]
[White "Firegrizzly"]
[Black "mrkvoz"]
[Result "0-1"]
[WhiteElo "2590"]
[BlackElo "2783"]
[TimeControl "180+1"]
[EndTime "11:29:58 PDT"]
[Termination "mrkvoz won by resignation"]

1. e4 {[%clk 0:03:00.9]} 1... d6 {[%clk 0:03:00.3]} 2. d4 {[%clk 0:03:00]} 2...
Nf6 {[%clk 0:03:00.9]} 3. Bd3 {[%clk 0:02:59.9]} 3... e5 {[%clk 0:03:01.5]} 4.
c3 {[%clk 0:02:59.9]} 4... Nc6 {[%clk 0:03:01.9]} 5. Nf3 {[%clk 0:02:58.9]} 5...
Bg4 {[%clk 0:03:02.3]} 6. d5 {[%clk 0:02:58.5]} 6... Ne7 {[%clk 0:03:02.4]} 7.
Nbd2 {[%clk 0:02:57.2]} 7... Ng6 {[%clk 0:02:56.1]} 8. h3 {[%clk 0:02:56.8]}
8... Bd7 {[%clk 0:02:55.3]} 9. g3 {[%clk 0:02:54.6]} 9... Be7 {[%clk 0:02:51.8]}
10. a4 {[%clk 0:02:53.6]} 10... O-O {[%clk 0:02:50.9]} 11. a5 {[%clk 0:02:52.5]}
11... c6 {[%clk 0:02:50.3]} 12. c4 {[%clk 0:02:52]} 12... h6 {[%clk 0:02:35.4]}
13. b4 {[%clk 0:02:47.1]} 13... Nh7 {[%clk 0:02:32.4]} 14. a6 {[%clk 0:02:40.3]}
14... bxa6 {[%clk 0:02:23.9]} 15. dxc6 {[%clk 0:02:38.3]} 15... Bxc6 {[%clk
0:02:23.7]} 16. Rxa6 {[%clk 0:02:37.9]} 16... Bb7 {[%clk 0:02:24]} 17. Ra2
{[%clk 0:02:34.9]} 17... Ng5 {[%clk 0:02:24.1]} 18. Nxg5 {[%clk 0:02:32.1]}
18... Bxg5 {[%clk 0:02:23.8]} 19. h4 {[%clk 0:02:32.3]} 19... Bxd2+ {[%clk
0:02:20.4]} 20. Bxd2 {[%clk 0:02:31.5]} 20... f5 {[%clk 0:02:20.9]} 21. Qe2
{[%clk 0:02:15.4]} 21... f4 {[%clk 0:02:20.5]} 22. h5 {[%clk 0:02:13.5]} 22...
Nh8 {[%clk 0:02:19.1]} 23. gxf4 {[%clk 0:02:12.3]} 23... exf4 {[%clk 0:02:19.2]}
24. Qg4 {[%clk 0:02:11.2]} 24... Nf7 {[%clk 0:02:11.6]} 25. Rg1 {[%clk
0:02:09.3]} 25... Ng5 {[%clk 0:02:03.2]} 26. Bxf4 {[%clk 0:02:03]} 26... Bc8
{[%clk 0:01:27.2]} 27. Bxg5 {[%clk 0:01:59]} 27... Qb6 {[%clk 0:01:21.9]} 28.
Qg3 {[%clk 0:01:53.1]} 28... hxg5 {[%clk 0:01:21.8]} 29. Qxg5 {[%clk 0:01:47.5]}
29... Qxb4+ {[%clk 0:01:21.6]} 30. Ke2 {[%clk 0:01:47.2]} 30... Rf7 {[%clk
0:01:20.8]} 31. h6 {[%clk 0:01:44.2]} 31... Be6 {[%clk 0:01:20.7]} 32. Rb1
{[%clk 0:01:38.8]} 32... Qc3 {[%clk 0:01:18.6]} 33. Rc2 {[%clk 0:01:38.1]} 33...
Qd4 {[%clk 0:01:17.3]} 34. h7+ {[%clk 0:01:33.5]} 34... Kh8 {[%clk 0:01:15.5]}
35. Qe3 {[%clk 0:01:32.9]} 35... Bg4+ {[%clk 0:01:14.5]} 36. Ke1 {[%clk
0:01:28]} 36... Qxe3+ {[%clk 0:01:06.2]} 37. fxe3 {[%clk 0:01:27.6]} 37... a5
{[%clk 0:01:05.7]} 38. Rf2 {[%clk 0:01:22.3]} 38... Re7 {[%clk 0:00:54]} 39. Ra1
{[%clk 0:01:18.7]} 39... Bh5 {[%clk 0:00:50.8]} 40. Rf5 {[%clk 0:00:52.7]} 40...
Bg6 {[%clk 0:00:50.6]} 41. Rfxa5 {[%clk 0:00:52.6]} 41... Rxa5 {[%clk
0:00:50.7]} 42. Rxa5 {[%clk 0:00:52.3]} 42... Bxe4 {[%clk 0:00:51.5]} 43. Bxe4
{[%clk 0:00:49.5]} 43... Rxe4 {[%clk 0:00:51.4]} 44. Ra4 {[%clk 0:00:47]} 44...
Rxe3+ {[%clk 0:00:49.1]} 45. Kd2 {[%clk 0:00:46.6]} 45... Re6 {[%clk 0:00:46.4]}
46. Kd3 {[%clk 0:00:46.6]} 46... Kxh7 {[%clk 0:00:46.2]} 47. Kd4 {[%clk
0:00:46.8]} 47... g5 {[%clk 0:00:45.7]} 48. Kd5 {[%clk 0:00:46.2]} 48... Rg6
{[%clk 0:00:45.7]} 49. Ra3 {[%clk 0:00:41.4]} 49... g4 {[%clk 0:00:45.6]} 50.
Rg3 {[%clk 0:00:41.9]} 50... Kh6 {[%clk 0:00:45.2]} 51. Ke4 {[%clk 0:00:42.1]}
51... Kg5 {[%clk 0:00:44.9]} 52. Rg1 {[%clk 0:00:41.5]} 52... Rf6 {[%clk
0:00:41.9]} 53. Rh1 {[%clk 0:00:37.9]} 53... g3 {[%clk 0:00:38.7]} 54. Rg1
{[%clk 0:00:37.3]} 54... Kg4 {[%clk 0:00:38.8]} 55. c5 {[%clk 0:00:37.2]} 55...
dxc5 {[%clk 0:00:38.1]} 56. Ke5 {[%clk 0:00:38.1]} 56... Rf8 {[%clk 0:00:38.1]}
57. Kd5 {[%clk 0:00:37.8]} 57... Rf5+ {[%clk 0:00:35.3]} 58. Kc4 {[%clk
0:00:37.3]} 58... Kh3 {[%clk 0:00:33.6]} 59. Rf1 {[%clk 0:00:37.3]} 59... Rxf1
{[%clk 0:00:24.2]} 0-1

[Event "*** Titled Tuesday Blitz"]
[Site "Chess.com"]
[Date "2020.04.14"]
[Round "8"]
[White "MergenKakabaev"]
[Black "kekic76"]
[Result "1-0"]
[WhiteElo "2455"]
[BlackElo "2288"]
[TimeControl "180+1"]
[EndTime "11:29:58 PDT"]
[Termination "MergenKakabaev won by resignation"]

1. e4 {[%clk 0:02:59.9]} 1... e6 {[%clk 0:02:56.5]} 2. d4 {[%clk 0:02:59.2]}
2... d5 {[%clk 0:02:56.6]} 3. e5 {[%clk 0:02:59.2]} 3... c5 {[%clk 0:02:55.9]}
4. c3 {[%clk 0:02:59]} 4... Qb6 {[%clk 0:02:55.8]} 5. Nf3 {[%clk 0:02:58.9]}
5... Bd7 {[%clk 0:02:55.2]} 6. a3 {[%clk 0:02:58.8]} 6... Bb5 {[%clk 0:02:54.8]}
7. g3 {[%clk 0:02:58.9]} 7... Bxf1 {[%clk 0:02:53.9]} 8. Kxf1 {[%clk 0:02:59.8]}
8... Nc6 {[%clk 0:02:53.4]} 9. Kg2 {[%clk 0:02:59.2]} 9... a5 {[%clk 0:02:44.1]}
10. Qa4 {[%clk 0:02:25.9]} 10... Ra6 {[%clk 0:02:24]} 11. Nbd2 {[%clk
0:02:15.1]} 11... h5 {[%clk 0:02:23.6]} 12. h4 {[%clk 0:02:10.5]} 12... Nh6
{[%clk 0:02:23.4]} 13. Nb3 {[%clk 0:02:10.3]} 13... c4 {[%clk 0:02:16.7]} 14.
Nbd2 {[%clk 0:02:10.2]} 14... Nf5 {[%clk 0:02:16.1]} 15. Nf1 {[%clk 0:02:10.4]}
15... g6 {[%clk 0:02:11]} 16. Qc2 {[%clk 0:02:09.4]} 16... Be7 {[%clk
0:02:07.9]} 17. Ne3 {[%clk 0:02:07.3]} 17... a4 {[%clk 0:01:58.2]} 18. Nxf5
{[%clk 0:02:06.8]} 18... exf5 {[%clk 0:01:58.2]} 19. Bg5 {[%clk 0:02:07.4]}
19... Nd8 {[%clk 0:01:57.5]} 20. Bxe7 {[%clk 0:02:06.9]} 20... Kxe7 {[%clk
0:01:58.4]} 21. Ng5 {[%clk 0:01:51.2]} 21... Ne6 {[%clk 0:01:57.2]} 22. Qd2
{[%clk 0:01:50.3]} 22... Qd8 {[%clk 0:01:51]} 23. Rae1 {[%clk 0:01:45.8]} 23...
Rb6 {[%clk 0:01:48.9]} 24. Re2 {[%clk 0:01:44.9]} 24... Rb5 {[%clk 0:01:46.6]}
25. f3 {[%clk 0:01:43.6]} 25... Nxg5 {[%clk 0:01:28.7]} 26. Qxg5+ {[%clk
0:01:43.3]} 26... Ke6 {[%clk 0:01:28.7]} 27. Qf4 {[%clk 0:01:41.9]} 27... Qe7
{[%clk 0:01:25.2]} 28. g4 {[%clk 0:01:39.2]} 28... Rg8 {[%clk 0:01:05.3]} 29.
Kh3 {[%clk 0:01:20.5]} 29... Kd7 {[%clk 0:00:58.6]} 30. gxf5 {[%clk 0:01:19.6]}
30... gxf5 {[%clk 0:00:58.5]} 31. Qxf5+ {[%clk 0:01:19.4]} 31... Qe6 {[%clk
0:00:58.5]} 32. Qxe6+ {[%clk 0:01:18]} 32... Kxe6 {[%clk 0:00:58.3]} 33. Rhh2
{[%clk 0:01:18.3]} 33... Kf5 {[%clk 0:00:53.3]} 34. Rhg2 {[%clk 0:01:16.6]}
34... Rxg2 {[%clk 0:00:51.8]} 35. Rxg2 {[%clk 0:01:11]} 35... Kf4 {[%clk
0:00:44.9]} 36. Rg7 {[%clk 0:01:07.6]} 36... Rxb2 {[%clk 0:00:43.2]} 37. Rxf7+
{[%clk 0:01:07.5]} 37... Ke3 {[%clk 0:00:43.4]} 38. e6 {[%clk 0:01:06.8]} 38...
Kd3 {[%clk 0:00:43.4]} 39. Rf5 {[%clk 0:00:55.3]} 39... Re2 {[%clk 0:00:32.5]}
40. Re5 {[%clk 0:00:54.7]} 40... Rxe5 {[%clk 0:00:31.9]} 41. dxe5 {[%clk
0:00:55.6]} 41... d4 {[%clk 0:00:26.9]} 42. e7 {[%clk 0:00:55.7]} 42... dxc3
{[%clk 0:00:24.1]} 43. e8=Q {[%clk 0:00:53.6]} 43... c2 {[%clk 0:00:24.4]} 44.
Qg6+ {[%clk 0:00:52.9]} 44... Kd2 {[%clk 0:00:24.3]} 45. e6 {[%clk 0:00:51.1]}
1-0